bitfinex-derivatives/quotes_BTCF0:USTF0_20250406
["timestamp","ask_amount","ask_price","bid_price","bid_amount"]
[1743979725588,0.18706696,78129.0,78126.0,0.49263622]
[1743979725789,0.22448035,78135.0,78127.0,1.8819]
[1743979725991,0.24448035,78135.0,78130.0,0.3608]
[1743979726198,0.60528035,78135.0,78131.0,0.3819]
[1743979726393,0.60528035,78135.0,78126.0,0.21463868]
[1743979726394,0.1280837,78127.0,78126.0,0.21463868]
[1743979726595,0.2480837,78127.0,78126.0,0.21463868]
[1743979727001,0.2491637,78127.0,78126.0,0.21463868]
[1743979727303,0.4316637,78127.0,78126.0,0.21463868]
[1743979727496,0.6240637,78127.0,78126.0,0.15532478]
[1743979728598,0.6240637,78127.0,78126.0,0.28332232]
[1743979728900,0.6280637,78127.0,78126.0,0.28332232]
[1743979729104,0.6280637,78127.0,78126.0,0.15532478]
[1743979730401,0.6310637,78127.0,78126.0,0.15532478]
[1743979730707,0.6320637,78127.0,78126.0,0.15532478]
[1743979731207,0.6240637,78127.0,78126.0,0.15532478]
[1743979731401,0.6270637,78127.0,78126.0,0.15532478]
[1743979732103,0.6260637,78127.0,78126.0,0.15532478]
[1743979732292,0.9868637,78127.0,78126.0,8e-08]
[1743979732703,0.9868637,78127.0,78126.0,0.12799762]
[1743979732899,0.7944637,78127.0,78126.0,0.12799762]
[1743979733300,0.6119637,78127.0,78126.0,1.62799762]
[1743979733498,0.48388,78127.0,78126.0,1.62799762]
[1743979733702,0.48388,78127.0,78126.0,0.12799762]
[1743979733703,0.2511637,78127.0,78126.0,0.12799762]
[1743979734294,0.002,78127.0,78126.0,0.40608302]
[1743979734502,0.0640331,78138.0,78126.0,0.63879762]
[1743979734806,0.25448035,78134.0,78126.0,0.12799762]
[1743979735111,0.0640394,78130.0,78126.0,0.12863762]
[1743979735300,0.1280821,78128.0,78127.0,0.3612]
[1743979735495,0.1288421,78128.0,78127.0,0.36196]
[1743979735700,0.1280744,78133.0,78127.0,0.51196]
[1743979735908,0.02996,78133.0,78132.0,0.1280755]
[1743979736213,0.064024,78149.0,78132.0,0.36144]
[1743979736503,0.1280563,78144.0,78141.0,0.3608]
[1743979736710,0.1287763,78144.0,78142.0,0.5635]
[1743979736905,0.1287763,78144.0,78143.0,1.5]
[1743979737118,0.1280563,78144.0,78143.0,1.5]
[1743979737408,0.1380563,78144.0,78143.0,1.876]
[1743979737708,0.1388563,78144.0,78143.0,0.12877133]
[1743979737898,0.1280673,78137.0,78136.0,0.00960153]
[1743979738100,0.1587873,78137.0,78136.0,0.01032153]
[1743979738397,0.03072,78137.0,78136.0,0.128789]
[1743979738598,0.03072,78137.0,78136.0,0.25675869]
[1743979738795,0.03072,78137.0,78136.0,0.12868969]
[1743979739003,0.03072,78137.0,78136.0,0.48948969]
[1743979739206,0.03,78137.0,78136.0,0.48948969]
[1743979739401,0.03,78137.0,78136.0,0.12868969]
[1743979739801,0.03072,78137.0,78136.0,0.48948969]
[1743979740000,0.03,78137.0,78136.0,0.48948969]
[1743979740196,0.03,78137.0,78136.0,0.49048969]
[1743979740400,0.1580673,78137.0,78136.0,0.13168969]
[1743979741110,0.1280837,78127.0,78123.0,0.00102402]
[1743979741301,0.7788837,78127.0,78123.0,0.00102402]
[1743979741497,0.29,78127.0,78126.0,0.48878124]
[1743979741696,0.4180837,78127.0,78126.0,0.12798124]
[1743979741896,0.29,78127.0,78126.0,0.12798124]
[1743979742611,0.0640321,78139.0,78127.0,0.0640416]
[1743979742803,0.1280837,78127.0,78126.0,0.32318124]
[1743979743109,0.1380837,78127.0,78126.0,8e-08]
[1743979743408,0.1390837,78127.0,78126.0,0.12798697]
[1743979743722,0.1390837,78127.0,78126.0,0.00400008]
[1743979743901,0.4998837,78127.0,78126.0,0.00400008]
[1743979744516,0.4998837,78127.0,78126.0,8e-08]
[1743979744816,0.5028837,78127.0,78126.0,0.12799762]
[1743979745003,0.5036837,78127.0,78126.0,0.12867762]
[1743979745203,0.5026837,78127.0,78126.0,0.12867762]
[1743979746106,0.5026837,78127.0,78126.0,0.00068008]
[1743979746716,0.5026837,78127.0,78126.0,8e-08]
[1743979746905,0.3746,78127.0,78126.0,0.25672302]
[1743979747111,0.3736,78127.0,78126.0,0.25672302]
[1743979747398,0.3726,78127.0,78126.0,0.25672302]
[1743979747606,0.3746,78127.0,78126.0,0.25672302]
[1743979747803,0.3746,78127.0,78126.0,1.75672302]
[1743979748009,0.3718,78127.0,78126.0,1.75672302]
[1743979748207,0.128073,78134.0,78133.0,0.1280727]
[1743979748413,0.1789122,78134.0,78133.0,0.1287927]
[1743979748814,0.1789122,78134.0,78133.0,0.00072]
[1743979749016,0.1789122,78134.0,78133.0,0.12871754]
[1743979750012,0.1829122,78134.0,78133.0,0.12871754]
[1743979750210,0.35589383,78156.0,78134.0,0.0640359]
[1743979750406,0.1280395,78154.0,78153.0,0.3608]
[1743979750611,0.1280526,78146.0,78145.0,1.6816]
[1743979750812,0.4180526,78146.0,78145.0,1.5]
[1743979751009,0.4180526,78146.0,78145.0,1.62798607]
[1743979751210,0.29,78146.0,78145.0,1.96999526]
[1743979751409,0.00019192,78153.0,78152.0,0.1280427]
[1743979751612,0.01019192,78153.0,78152.0,0.4888427]
[1743979751805,0.3651,78166.0,78152.0,0.3608]
[1743979751806,0.35755218,78160.0,78152.0,0.3608]
[1743979752011,0.35952198,78160.0,78159.0,0.4888313]
[1743979752208,0.1833,78176.0,78160.0,0.0640143]
[1743979752416,0.1918,78176.0,78175.0,0.4888051]
[1743979752916,0.01,78176.0,78175.0,0.4888051]
[1743979753115,0.1380034,78176.0,78175.0,0.7216]
[1743979753313,0.1380034,78176.0,78175.0,0.12791731]
[1743979753519,0.0640065,78171.0,78153.0,0.00191951]
[1743979753713,0.0640188,78156.0,78153.0,0.00191951]
[1743979753911,0.1280395,78154.0,78153.0,0.00191951]
[1743979754116,0.2480395,78154.0,78153.0,0.36271951]
[1743979754306,0.0640339,78137.0,78133.0,0.3608]
[1743979754515,0.1480673,78137.0,78136.0,0.3608]
[1743979755120,0.02072,78137.0,78136.0,0.48947168]
[1743979755417,0.00019192,78143.0,78136.0,0.61753998]
[1743979755720,0.07019192,78143.0,78142.0,0.3608]
[1743979755914,0.07019192,78143.0,78142.0,0.3616]
[1743979756120,0.07019192,78143.0,78132.0,0.22963114]
[1743979756121,0.1280739,78133.0,78132.0,0.22963114]
[1743979756422,0.11,78133.0,78132.0,0.24757212]
[1743979756715,0.11,78133.0,78132.0,0.37564762]
[1743979756910,0.11084,78133.0,78132.0,0.37554345]
[1743979757107,0.2389139,78133.0,78132.0,0.37554345]
[1743979757312,0.11084,78133.0,78132.0,0.50361895]
[1743979757614,0.11,78133.0,78132.0,0.50561895]
[1743979758206,0.11,78133.0,78132.0,0.50461895]
[1743979758406,0.00019192,78143.0,78142.0,0.1280591]
[1743979758620,0.1801,78165.0,78158.0,0.1280329]
[1743979758817,0.1280293,78161.0,78159.0,0.50605218]
[1743979759121,0.25076,78161.0,78160.0,2.07006458]
[1743979759324,0.25,78161.0,78160.0,2.0528436]
[1743979759515,0.25,78161.0,78160.0,2.0534836]
[1743979759813,0.25,78161.0,78160.0,2.18142382]
[1743979760018,0.25,78161.0,78160.0,0.68142382]
[1743979760219,0.25576,78161.0,78160.0,0.68142382]
[1743979760421,0.569188,78161.0,78160.0,0.48938022]
[1743979760606,0.762288,78161.0,78160.0,0.48938022]
[1743979761417,0.762288,78161.0,78160.0,0.00064]
[1743979761615,0.757288,78161.0,78160.0,0.00064]
[1743979762011,0.62926,78161.0,78160.0,0.4894696]
[1743979762215,0.757288,78161.0,78160.0,0.48938186]
[1743979763523,0.43616,78161.0,78160.0,0.61741146]
[1743979764118,0.25076,78161.0,78160.0,0.61741146]
[1743979764316,0.00019192,78168.0,78167.0,0.1280182]
[1743979764521,0.02099192,78168.0,78167.0,0.4895782]
[1743979764911,0.02099192,78168.0,78167.0,2.11752006]
[1743979765117,0.14820842,78168.0,78167.0,1.98950186]
[1743979765418,0.02019192,78168.0,78167.0,0.61752006]
[1743979765624,0.02119192,78168.0,78167.0,0.61752006]
[1743979766022,0.21739192,78168.0,78167.0,0.61752006]
[1743979766223,0.21739192,78168.0,78167.0,0.80802006]
[1743979766526,0.34540842,78168.0,78167.0,0.80802006]
[1743979766913,0.34540842,78168.0,78167.0,0.68000186]
[1743979767118,0.34540842,78168.0,78167.0,0.48950186]
[1743979767521,0.34740842,78168.0,78167.0,0.48950186]
[1743979767918,0.34740842,78168.0,78167.0,0.36156]
[1743979768225,0.128028,78161.0,78160.0,0.3608]
[1743979768426,0.1280395,78154.0,78153.0,0.12023192]
[1743979768727,0.1980395,78154.0,78153.0,0.60907302]
[1743979768921,0.1980395,78154.0,78153.0,0.48103192]
[1743979769122,0.1980395,78154.0,78153.0,0.60896232]
[1743979769319,0.07,78154.0,78153.0,0.60896232]
[1743979769515,0.07,78154.0,78153.0,0.73700342]
[1743979770022,0.07,78154.0,78153.0,0.73768342]
[1743979770627,0.07,78154.0,78153.0,0.73968342]
[1743979771028,0.1987995,78154.0,78153.0,0.61164232]
[1743979771328,0.1987995,78154.0,78153.0,0.73968342]
[1743979771731,0.1987995,78154.0,78153.0,0.61964342]
[1743979772226,0.07076,78154.0,78153.0,0.61964342]
[1743979772535,0.07,78154.0,78153.0,0.61964342]
[1743979772827,0.1980395,78154.0,78153.0,0.49160232]
[1743979773030,0.1987995,78154.0,78153.0,0.49160232]
[1743979773923,0.1987995,78154.0,78153.0,0.48960232]
[1743979774124,0.1987995,78154.0,78153.0,0.49160232]
[1743979774519,0.1987995,78154.0,78153.0,0.61764342]
[1743979774520,0.07076,78154.0,78153.0,0.61764342]
[1743979774723,0.07,78154.0,78153.0,0.61764342]
[1743979775227,0.1853,78166.0,78165.0,0.1280214]
[1743979775433,0.05076,78166.0,78165.0,0.5534713]
[1743979775925,0.05076,78166.0,78165.0,0.55340322]
[1743979776122,0.1787798,78166.0,78165.0,0.92930322]
[1743979776323,0.1787798,78166.0,78165.0,0.86529332]
[1743979776528,0.1787798,78166.0,78165.0,0.31189332]
[1743979777431,0.1787798,78166.0,78165.0,0.12859332]
[1743979777636,0.1807798,78166.0,78165.0,0.12859332]
[1743979777934,0.05276,78166.0,78165.0,0.25661472]
[1743979778334,0.1807798,78166.0,78165.0,0.25661472]
[1743979778536,0.1807798,78166.0,78165.0,0.12859332]
[1743979779933,0.1807798,78166.0,78165.0,0.31449332]
[1743979780134,0.1807798,78166.0,78165.0,0.12859332]
[1743979781532,0.1280296,78160.0,78159.0,0.3608]
[1743979781733,0.3889496,78160.0,78159.0,0.3608]
[1743979782539,0.7497496,78160.0,78159.0,0.1279435]
[1743979782841,0.1280395,78154.0,78152.0,0.3608]
[1743979783136,0.1280395,78154.0,78142.0,0.30499134]
[1743979783137,0.1280477,78149.0,78142.0,0.30499134]
[1743979783439,0.1280706,78135.0,78126.0,0.47064688]
[1743979783624,0.4089906,78135.0,78126.0,0.47064688]
[1743979783824,0.1280837,78127.0,78126.0,0.45172917]
[1743979784025,0.4080837,78127.0,78126.0,0.45172917]
[1743979784231,0.4090037,78127.0,78126.0,0.45172917]
[1743979784531,0.4090037,78127.0,78126.0,8e-08]
[1743979784733,0.7822037,78127.0,78126.0,8e-08]
[1743979785429,0.7822037,78127.0,78126.0,0.14706859]
[1743979785843,0.7832037,78127.0,78126.0,0.14706859]
[1743979786528,0.5930037,78127.0,78126.0,0.14706859]
[1743979786733,0.5950037,78127.0,78126.0,0.14706859]
[1743979787332,0.4090037,78127.0,78126.0,0.14706859]
[1743979787538,0.4100037,78127.0,78126.0,0.14706859]
[1743979787934,0.4090037,78127.0,78126.0,0.14706859]
[1743979788137,0.7927037,78127.0,78126.0,8e-08]
[1743979788740,0.7937037,78127.0,78126.0,8e-08]
[1743979790034,0.7937037,78127.0,78126.0,0.12799762]
[1743979790234,0.6010037,78127.0,78126.0,0.12799762]
[1743979790539,0.4110037,78127.0,78126.0,0.12799762]
[1743979790942,0.4110037,78127.0,78126.0,0.48879762]
[1743979791132,0.28292,78127.0,78126.0,0.61688302]
[1743979791332,0.28092,78127.0,78126.0,0.61688302]
[1743979791540,0.28092,78127.0,78126.0,0.76688302]
[1743979791741,0.28092,78127.0,78126.0,0.61688302]
[1743979792336,0.00019192,78134.0,78133.0,0.1280739]
[1743979792539,0.12019192,78134.0,78133.0,0.4888739]
[1743979792736,0.00019192,78134.0,78133.0,0.6388739]
[1743979792931,0.11277984,78138.0,78137.0,0.1280673]
[1743979793131,0.25084554,78138.0,78137.0,0.3608]
[1743979793334,0.12277984,78138.0,78137.0,0.4888673]
[1743979793539,0.12277984,78138.0,78137.0,0.61685337]
[1743979793726,0.15768007,78149.0,78142.0,0.0640295]
[1743979793926,0.35317313,78156.0,78148.0,0.3608]
[1743979794129,0.00019192,78153.0,78152.0,0.1280427]
[1743979794330,0.22513553,78156.0,78152.0,0.3608]
[1743979794535,0.0640073,78170.0,78152.0,0.3608]
[1743979794536,0.1280166,78168.0,78163.0,0.064012]
[1743979794734,0.4180166,78168.0,78167.0,0.3608]
[1743979795240,0.4186566,78168.0,78167.0,0.36144]
[1743979795537,0.4186566,78168.0,78167.0,0.4893704]
[1743979795931,0.4196566,78168.0,78167.0,0.4893704]
[1743979796136,0.30068911,78175.0,78171.0,0.0640056]
[1743979796438,0.72521318,78215.0,78176.0,0.0640013]
[1743979796628,0.1759,78198.0,78194.0,0.3608]
[1743979796829,0.251,78198.0,78195.0,0.0639861]
[1743979797028,0.251,78198.0,78197.0,0.1279691]
[1743979797238,0.251,78198.0,78197.0,0.1290091]
[1743979797443,0.25,78198.0,78197.0,0.14645505]
[1743979797637,0.00019192,78205.0,78204.0,0.1279576]
[1743979797936,0.00232,78214.0,78211.0,0.0639724]
[1743979798141,0.06296,78214.0,78213.0,0.4887429]
[1743979798339,0.05824516,78215.0,78214.0,0.1279412]
[1743979798534,0.07972516,78215.0,78214.0,0.14686715]
[1743979799134,0.07972516,78215.0,78214.0,0.27473702]
[1743979799334,0.07972516,78215.0,78214.0,0.28414503]
[1743979799534,0.07972516,78215.0,78214.0,0.26669908]
[1743979799841,0.07972516,78215.0,78214.0,0.40264075]
[1743979800741,0.08572516,78215.0,78214.0,0.40264075]
[1743979801040,0.3573,78237.0,78234.0,0.1279076]
[1743979801244,0.6373,78237.0,78234.0,0.00192]
[1743979801543,0.6373,78237.0,78235.0,0.1279061]
[1743979801744,0.5843041,78237.0,78235.0,0.12977353]
[1743979801944,0.1279053,78236.0,78235.0,0.12977353]
[1743979802243,0.7087053,78236.0,78235.0,0.00192]
[1743979802434,0.1279167,78229.0,78228.0,0.00019179]
[1743979802745,0.127938,78216.0,78215.0,0.3608]
[1743979803047,0.127938,78216.0,78204.0,0.01937978]
[1743979803048,0.24,78216.0,78204.0,0.01937978]
[1743979803232,0.24,78216.0,78200.0,0.3608]
[1743979803233,0.3799,78215.0,78207.0,0.12781839]
[1743979803429,0.0639706,78214.0,78207.0,0.3608]
[1743979803630,0.1279511,78208.0,78207.0,0.3608]
[1743979803835,0.2579511,78208.0,78207.0,0.3608]
[1743979804235,0.2579511,78208.0,78207.0,0.48865189]
[1743979804436,0.2579511,78208.0,78207.0,0.12785189]
[1743979804636,0.127956,78205.0,78204.0,0.002]
[1743979804839,0.377956,78205.0,78204.0,0.002]
[1743979805138,0.25076,78205.0,78204.0,0.1307176]
[1743979805346,0.25076,78205.0,78204.0,0.13062987]
[1743979805347,0.377956,78205.0,78204.0,0.13062987]
[1743979805839,0.378596,78205.0,78204.0,0.00276]
[1743979806145,0.1279625,78201.0,78200.0,0.00019179]
[1743979806448,0.2586825,78201.0,78200.0,0.00083179]
[1743979806742,0.2586825,78201.0,78200.0,0.25666586]
[1743979806743,0.13072,78201.0,78200.0,0.25666586]
[1743979807244,0.2586825,78201.0,78200.0,0.12870166]
[1743979808038,0.2586825,78201.0,78200.0,0.62346586]
[1743979808039,0.12620821,78201.0,78200.0,0.62346586]
[1743979808236,0.1279111,78233.0,78214.0,0.1279412]
[1743979808436,0.3618,78238.0,78214.0,0.47844]
[1743979808643,0.3768,78232.0,78231.0,0.1279134]
[1743979808938,0.0639572,78231.0,78216.0,0.3608]
[1743979809147,0.06064,78231.0,78230.0,0.1279151]
[1743979809339,0.06064,78231.0,78230.0,0.1286351]
[1743979809534,0.1885534,78231.0,78230.0,0.00072]
[1743979809739,0.3646534,78231.0,78230.0,0.00072]
[1743979810037,0.06064,78231.0,78230.0,0.25574084]
[1743979810243,0.06064,78231.0,78230.0,0.61654084]
[1743979810444,0.063,78231.0,78230.0,0.61654084]
[1743979810644,0.063,78231.0,78230.0,0.63396414]
[1743979811340,0.066,78231.0,78230.0,0.63394704]
[1743979811541,0.006,78231.0,78230.0,0.97581197]
[1743979811848,0.1952,78253.0,78237.0,0.1279036]
[1743979812153,0.1761,78260.0,78237.0,0.50596547]
[1743979812343,0.1761,78260.0,78259.0,0.1278677]
[1743979812547,0.23,78260.0,78259.0,0.4886677]
[1743979813044,0.23,78260.0,78259.0,0.61648364]
[1743979813249,0.357866,78260.0,78259.0,0.49810891]
[1743979813852,0.552766,78260.0,78259.0,0.3608]
[1743979814249,0.235,78260.0,78259.0,0.61744771]
[1743979814452,0.238,78260.0,78259.0,0.61744771]
[1743979814846,0.008,78260.0,78259.0,0.63456494]
[1743979815346,0.008,78260.0,78259.0,0.61816771]
[1743979815552,0.008,78260.0,78259.0,0.63527674]
[1743979815943,0.008,78260.0,78259.0,0.81747674]
[1743979816343,0.018,78260.0,78259.0,0.81747674]
[1743979816544,0.018,78260.0,78259.0,0.80036771]
[1743979816842,0.013,78260.0,78259.0,0.79936771]
[1743979817043,0.019,78260.0,78259.0,0.79936771]
[1743979817349,0.001,78286.0,78285.0,0.1278252]
[1743979817646,0.28164,78286.0,78285.0,0.4892652]
[1743979818039,0.28164,78286.0,78285.0,0.61704521]
[1743979818237,0.28164,78286.0,78285.0,0.25624521]
[1743979818444,0.127835,78279.0,78278.0,0.00019165]
[1743979818637,0.408635,78279.0,78278.0,0.00083165]
[1743979818851,0.558635,78279.0,78278.0,0.00083165]
[1743979819350,0.919435,78279.0,78278.0,0.00083165]
[1743979819541,0.1278709,78257.0,78256.0,0.0182388]
[1743979819742,0.1988709,78257.0,78256.0,0.00064]
[1743979820044,0.1279069,78235.0,78234.0,0.3608]
[1743979820245,0.1279183,78228.0,78224.0,0.11676]
[1743979820557,0.1779183,78228.0,78227.0,0.36271759]
[1743979820745,0.05124001,78228.0,78227.0,0.50869261]
[1743979820946,0.05124001,78228.0,78227.0,0.63661261]
[1743979821145,0.04936,78228.0,78227.0,1.00951261]
[1743979821450,0.3608,78266.0,78248.0,0.0639427]
[1743979821653,0.1278709,78257.0,78256.0,0.3608]
[1743979821852,0.3778709,78257.0,78256.0,0.01717199]
[1743979822356,0.1278791,78252.0,78251.0,0.3608]
[1743979822554,0.07,78252.0,78251.0,0.4886807]
[1743979822857,0.3813391,78252.0,78251.0,0.3608]
[1743979823051,0.2523,78252.0,78251.0,0.48858491]
[1743979823252,0.2523,78252.0,78251.0,0.61646561]
[1743979823650,0.3801791,78252.0,78251.0,0.48858491]
[1743979823847,0.2523,78252.0,78251.0,0.61746561]
[1743979824044,0.2523,78252.0,78251.0,0.61946561]
[1743979824546,0.07,78252.0,78251.0,0.61946561]
[1743979824852,0.07,78252.0,78251.0,0.62046561]
[1743979825058,0.1978791,78252.0,78251.0,0.49258491]
[1743979825445,0.07,78252.0,78251.0,0.62046561]
[1743979825956,0.063919,78278.0,78268.0,0.0639264]
[1743979826152,0.3798,78275.0,78274.0,0.1278432]
[1743979826465,0.08116,78275.0,78274.0,0.4886432]
[1743979826655,0.08,78275.0,78274.0,0.61640117]
[1743979826957,0.2078415,78275.0,78274.0,0.79310117]
[1743979827163,0.2078415,78275.0,78274.0,0.66525797]
[1743979827361,0.2078415,78275.0,78274.0,0.79310117]
[1743979827549,0.08,78275.0,78274.0,0.79310117]
[1743979827747,0.082,78275.0,78274.0,0.80262107]
[1743979828557,0.082,78275.0,78274.0,0.48855797]
[1743979828755,0.2098415,78275.0,78274.0,0.12775797]
[1743979828958,0.3611215,78275.0,78274.0,0.12775797]
[1743979829264,0.127853,78268.0,78267.0,0.00019165]
[1743979829557,0.769813,78268.0,78267.0,0.00019165]
[1743979829758,0.919813,78268.0,78267.0,0.00019165]
[1743979829961,0.559013,78268.0,78267.0,0.00019165]
[1743979830158,0.409013,78268.0,78267.0,0.00019165]
[1743979830660,0.411013,78268.0,78267.0,0.00019165]
[1743979830961,0.1278709,78257.0,78256.0,0.3608]
[1743979831157,0.1278709,78257.0,78231.0,0.0831559]
[1743979831158,0.0639484,78242.0,78239.0,0.3608]
[1743979831354,0.1279167,78229.0,78228.0,0.11676]
[1743979831657,0.02,78229.0,78228.0,0.2446783]
[1743979831854,0.02,78229.0,78228.0,1.11006321]
[1743979832460,0.1479167,78229.0,78228.0,0.74926321]
[1743979832666,0.02,78229.0,78228.0,0.74926321]
[1743979832960,0.1479167,78229.0,78228.0,0.50558491]
[1743979833156,0.02,78229.0,78228.0,0.63350321]
[1743979833562,0.02,78229.0,78228.0,0.63250321]
[1743979833761,0.02,78229.0,78228.0,0.65372674]
[1743979833950,0.3808,78229.0,78228.0,0.52580844]
[1743979834155,0.1479167,78229.0,78228.0,0.14900844]
[1743979834355,0.02,78229.0,78228.0,0.27692674]
[1743979834558,0.02,78229.0,78228.0,0.65522674]
[1743979835161,0.02084,78229.0,78228.0,0.65586674]
[1743979835367,0.02084,78229.0,78228.0,0.52794844]
[1743979835660,0.1487567,78229.0,78228.0,0.27756674]
[1743979835867,0.02084,78229.0,78228.0,0.27856674]
[1743979836060,0.02084,78229.0,78228.0,0.65286674]
[1743979836366,0.02084,78229.0,78228.0,0.65786795]
[1743979836566,0.1487567,78229.0,78228.0,0.33634965]
[1743979837364,0.1487567,78229.0,78228.0,0.15164965]
[1743979837663,0.02084,78229.0,78228.0,0.15164965]
[1743979837967,0.02084,78229.0,78228.0,0.52594965]
[1743979838163,0.1487567,78229.0,78228.0,0.15164965]
[1743979838369,0.02084,78229.0,78228.0,0.15164965]
[1743979838555,0.02084,78229.0,78228.0,0.14964965]
[1743979838758,0.1279183,78228.0,78227.0,0.00191759]
[1743979838971,0.1279282,78222.0,78221.0,0.00019165]
[1743979839170,0.1279363,78217.0,78211.0,0.01801974]
[1743979839462,0.1279707,78196.0,78195.0,0.00102308]
[1743979839664,0.74989071,78196.0,78195.0,0.00166308]
[1743979839859,0.74989071,78196.0,78195.0,0.00102308]
[1743979840280,1.11620776,78196.0,78195.0,0.00102308]
[1743979840867,1.11620776,78196.0,78195.0,0.01834373]
[1743979841864,1.11620776,78196.0,78195.0,1e-08]
[1743979842185,1.11620776,78196.0,78188.0,0.00019178]
[1743979842186,0.1279936,78182.0,78171.0,0.00102339]
[1743979842475,0.12801,78172.0,78171.0,0.00102339]
[1743979842655,0.55981,78172.0,78171.0,0.00102339]
[1743979843270,0.94221,78172.0,78171.0,0.12890798]
[1743979843465,0.1280247,78163.0,78156.0,0.11676]
[1743979843767,0.6388247,78163.0,78156.0,0.11676]
[1743979843971,0.6388247,78163.0,78156.0,0.2447961]
[1743979844359,1.0212247,78163.0,78158.0,0.1280324]
[1743979844560,1.0212247,78163.0,78162.0,0.50557672]
[1743979845059,1.0223047,78163.0,78162.0,0.50629672]
[1743979845463,1.0223047,78163.0,78162.0,0.12965858]
[1743979845660,1.02245933,78163.0,78162.0,0.001]
[1743979845859,1.02245933,78163.0,78162.0,0.004]
[1743979846071,0.1280362,78156.0,78155.0,0.00019191]
[1743979846367,0.7398362,78156.0,78155.0,0.00083191]
[1743979846662,0.1280493,78148.0,78147.0,0.00102371]
[1743979846867,0.4190493,78148.0,78147.0,0.00102371]
[1743979847672,0.41914296,78148.0,78147.0,0.00102371]
[1743979848076,0.1280739,78133.0,78131.0,0.00952053]
[1743979848269,0.41926574,78133.0,78132.0,0.36148]
[1743979848468,0.1280837,78127.0,78126.0,8e-08]
[1743979848668,0.38932371,78127.0,78126.0,0.00124008]
[1743979848872,0.38932371,78127.0,78126.0,8e-08]
[1743979849070,0.26124001,78127.0,78126.0,0.12796322]
[1743979849269,0.26124001,78127.0,78126.0,0.12860322]
[1743979849564,0.26124001,78127.0,78126.0,0.25668862]
[1743979849769,0.26,78127.0,78126.0,0.25868862]
[1743979850268,0.00011184,78133.0,78132.0,0.1280755]
[1743979850471,0.1888,78148.0,78131.0,0.3608]
[1743979850672,0.27,78148.0,78147.0,0.1280509]
[1743979850972,0.3980493,78148.0,78147.0,0.1168]
[1743979851270,0.1280591,78142.0,78141.0,0.1966]
[1743979851571,0.16942242,78142.0,78141.0,0.3134]
[1743979851967,0.16942242,78142.0,78141.0,0.44136314]
[1743979852568,0.04136332,78142.0,78141.0,0.44136314]
[1743979852767,0.16942242,78142.0,78141.0,0.44136314]
[1743979853375,0.1280624,78140.0,78139.0,0.3608]
[1743979853569,0.1280706,78135.0,78134.0,0.00019191]
[1743979853775,0.1780706,78135.0,78134.0,0.00019191]
[1743979853963,0.05,78135.0,78134.0,0.2734292]
[1743979854170,0.05,78135.0,78134.0,0.6342292]
[1743979854369,0.05128,78135.0,78134.0,0.6342292]
[1743979854578,0.1793506,78135.0,78134.0,0.506157]
[1743979854961,0.05128,78135.0,78134.0,0.2734292]
[1743979855273,0.1793506,78135.0,78134.0,0.50618197]
[1743979855574,0.1780706,78135.0,78134.0,0.14538197]
[1743979855773,0.1780706,78135.0,78134.0,0.14738197]
[1743979856166,0.1780706,78135.0,78134.0,0.51948197]
[1743979856367,0.1780706,78135.0,78134.0,0.14738197]
[1743979856867,0.1780706,78135.0,78127.0,0.0640418]
[1743979857076,0.7216,78128.0,78071.0,0.3608]
[1743979857278,0.3608,78092.0,78080.0,0.0640801]
[1743979857477,0.3608,78092.0,78079.0,0.3608]
[1743979857478,0.27,78092.0,78086.0,0.3608]
[1743979857671,0.27,78092.0,78087.0,0.1949]
[1743979858067,0.00016008,78091.0,78088.0,0.1925]
[1743979858273,0.07016008,78091.0,78088.0,0.1925]
[1743979858572,0.07016008,78091.0,78089.0,0.1949]
[1743979858765,0.00019205,78097.0,78093.0,0.0640696]
[1743979858974,0.01019205,78097.0,78096.0,0.3608]
[1743979859379,0.01019205,78097.0,78096.0,0.61699278]
[1743979859580,0.01019205,78097.0,78096.0,0.48885818]
[1743979859774,0.13845542,78097.0,78096.0,0.12805818]
[1743979860176,0.01032252,78097.0,78094.0,0.7482]
[1743979860380,0.01032252,78097.0,78095.0,0.12804671]
[1743979860979,0.01032252,78097.0,78096.0,0.3893]
[1743979861184,0.01032252,78097.0,78096.0,0.53751839]
[1743979861568,0.01032252,78097.0,78096.0,0.6655651]
[1743979862074,0.01032252,78097.0,78096.0,0.6635651]
[1743979862279,0.1933,78109.0,78096.0,0.6635651]
[1743979862280,0.3608,78123.0,78096.0,0.66734671]
[1743979862576,0.27,78121.0,78108.0,0.3608]
[1743979862786,0.27124001,78121.0,78109.0,0.6015]
[1743979862971,0.1281108,78111.0,78108.0,0.4889143]
[1743979863178,0.4248454,78123.0,78110.0,0.12804671]
[1743979863179,0.3608,78123.0,78110.0,0.12804671]
[1743979863478,0.3608,78123.0,78109.0,0.50614]
[1743979863479,0.54204001,78123.0,78122.0,0.1280919]
[1743979863878,0.1280919,78122.0,78121.0,0.3885]
[1743979864077,0.4068,78122.0,78121.0,0.3885]
[1743979864283,0.4068,78122.0,78110.0,0.19145768]
[1743979864284,0.0640502,78117.0,78110.0,0.19145768]
[1743979864579,0.3608,78111.0,78091.0,0.3608]
[1743979864777,0.3608,78103.0,78089.0,0.0640728]
[1743979864979,0.3608,78103.0,78102.0,0.1281247]
[1743979864980,0.58208,78103.0,78102.0,0.1281247]
[1743979865173,0.0640633,78101.0,78097.0,0.3885]
[1743979865482,0.3608,78098.0,78077.0,0.1281644]
[1743979865774,0.3608,78098.0,78083.0,0.128155]
[1743979865775,0.1281523,78086.0,78083.0,0.128155]
[1743979865981,0.1281582,78082.0,78079.0,0.51653687]
[1743979866180,0.03,78082.0,78080.0,0.00019205]
[1743979866382,0.03,78082.0,78081.0,0.1281592]
[1743979866568,0.03132,78082.0,78081.0,0.25623215]
[1743979866769,0.03,78082.0,78081.0,0.61703215]
[1743979866968,0.03,78082.0,78081.0,0.99483215]
[1743979867182,0.00019205,78089.0,78088.0,0.1281477]
[1743979867480,0.1281157,78108.0,78097.0,0.1281329]
[1743979867783,0.3608,78112.0,78111.0,0.12811]
[1743979867981,0.06,78112.0,78111.0,0.12811]
[1743979868178,0.06,78112.0,78110.0,0.3778]
[1743979868378,0.12811,78111.0,78110.0,0.3778]
[1743979868573,0.36731,78111.0,78110.0,0.3778]
[1743979868884,0.1281214,78104.0,78103.0,0.00019205]
[1743979869075,0.1781214,78104.0,78103.0,0.00019205]
[1743979869474,0.5578214,78104.0,78103.0,0.12821417]
[1743979869680,0.4297,78104.0,78097.0,0.10951417]
[1743979869877,0.4297,78104.0,78103.0,0.12803523]